bitfinex/quotes_SOLUSD_20240909
["timestamp","ask_amount","ask_price","bid_price","bid_amount"]
[1725886884832,21.5094,129.57,129.49,41.30994066]
[1725886885001,21.5094,129.57,129.5,20.0]
[1725886886413,45.0,129.56,129.5,20.0]
[1725886890228,95.0,129.56,129.44,15.4786]
[1725886890428,16.0476,129.55,129.44,56.78854066]
[1725886890620,6.1275,129.53,129.44,41.30994066]
[1725886890929,45.0,129.52,129.44,41.30994066]
[1725886891130,16.0476,129.51,129.42,41.30994066]
[1725886891441,45.0,129.5,129.42,41.30994066]
[1725886892725,45.0,129.5,129.43,20.0]
[1725886896045,6.2013,129.49,129.38,6.83235917]
[1725886896209,110.4891,129.48,129.37,16.563]
[1725886896410,110.4891,129.48,129.37,57.87294066]
[1725886897847,110.4891,129.48,129.38,20.0]
[1725886898624,110.4891,129.48,129.39,41.30994066]
[1725886898829,60.4891,129.48,129.4,20.0]
[1725886899647,110.4891,129.48,129.4,20.0]
[1725886900744,6.6456,129.47,129.38,20.0]
[1725886901045,45.0,129.46,129.38,20.0]
[1725886902125,95.0,129.46,129.38,20.0]
[1725886902447,15.44,129.45,129.38,20.0]
[1725886902745,45.0,129.44,129.38,20.0]
[1725886903551,6.5485,129.43,129.36,20.0]
[1725886903731,45.0,129.42,129.36,20.0]
[1725886905048,45.0,129.42,129.35,41.30994066]
[1725886905258,45.0,129.42,129.33,57.30064066]
[1725886905434,15.3257,129.41,129.33,41.30994066]
[1725886905634,45.0,129.4,129.33,41.30994066]
[1725886906641,45.0,129.4,129.34,20.0]
[1725886907562,45.0,129.4,129.35,41.30994066]
[1725886907765,45.0,129.4,129.36,20.0]
[1725886912863,45.0,129.4,129.35,16.56137567]
[1725886913064,45.0,129.4,129.36,20.0]
[1725886916371,45.0,129.4,129.33,16.56137567]
[1725886916581,45.0,129.4,129.34,20.0]
[1725886918388,45.0,129.4,129.35,16.56137567]
[1725886921277,6.2739,129.39,129.3,17.2995213]
[1725886921488,45.0,129.38,129.32,16.56137567]
[1725886922262,6.2739,129.39,129.3,17.2995213]
[1725886922263,6.2739,129.39,129.36,16.56137567]
[1725886922997,6.2739,129.39,129.35,16.56137567]
[1725886923163,6.2739,129.39,129.3,17.2995213]
[1725886923355,6.2739,129.39,129.34,16.56137567]
[1725886923563,6.2739,129.39,129.35,20.0]
[1725886924285,45.0,129.38,129.35,20.0]
[1725886925071,45.0,129.38,129.34,20.0]
[1725886931993,45.0,129.38,129.33,20.0]
[1725886933186,45.0,129.38,129.32,16.56137567]
[1725886933187,45.0,129.38,129.3,0.8411213]
[1725886933386,15.829,129.37,129.32,16.56137567]
[1725886933773,45.0,129.36,129.32,16.56137567]
[1725886934606,45.0,129.36,129.33,20.0]
[1725886936169,45.0,129.36,129.3,0.8411213]
[1725886936375,45.0,129.36,129.3,17.40249697]
[1725886936603,45.0,129.36,129.31,20.0]
[1725886940098,45.0,129.36,129.32,16.56137567]
[1725886943315,15.829,129.37,129.34,16.56137567]
[1725886943483,68.87625001,129.41,129.31,20.0]
[1725886943484,15.501,129.4,129.36,16.56137567]
[1725886943678,6.3452,129.43,129.39,16.56137567]
[1725886943679,21.8462,129.43,129.39,16.56137567]
[1725886945282,21.8462,129.43,129.32,18.70260278]
[1725886945488,21.8462,129.43,129.38,16.56137567]
[1725886946597,45.0,129.42,129.38,16.56137567]
[1725886946912,45.0,129.42,129.32,22.50405917]
[1725886947090,45.0,129.42,129.35,16.56137567]
[1725886947610,45.0,129.42,129.32,15.6717]
[1725886947818,45.0,129.42,129.35,16.56137567]
[1725886948689,45.0,129.42,129.36,20.0]
[1725886950290,45.0,129.42,129.34,20.0]
[1725886952514,95.0,129.42,129.34,20.0]
[1725886953221,102.7268,129.42,129.33,41.41019022]
[1725886953511,21.7641,129.41,129.31,41.41019022]
[1725886953722,45.0,129.4,129.31,41.41019022]
[1725886954087,45.0,129.4,129.33,41.41019022]
[1725886954824,45.0,129.4,129.34,20.0]
[1725886958026,95.0,129.4,129.31,41.41019022]
[1725886958409,95.0,129.4,129.32,20.0]
[1725886960222,45.0,129.4,129.32,20.0]
[1725886963519,95.0,129.4,129.32,20.0]
[1725886964332,15.2015,129.39,129.32,20.0]
[1725886964522,45.0,129.38,129.32,20.0]
[1725886971839,45.0,129.38,129.32,21.54485954]
[1725886972040,45.0,129.38,129.32,20.0]
[1725886972226,45.0,129.38,129.34,16.56628505]
[1725886975748,45.0,129.38,129.32,36.56628505]
[1725886975940,45.0,129.38,129.32,20.0]
[1725886976254,6.059,129.37,129.33,20.0]
[1725886976442,45.0,129.36,129.33,20.0]
[1725886976828,45.0,129.36,129.32,20.0]
[1725886977543,45.0,129.36,129.33,16.56628505]
[1725886977846,6.059,129.37,129.33,16.56628505]
[1725886981254,6.059,129.37,129.32,20.0]
[1725886981255,15.2015,129.39,129.35,16.56628505]
[1725886981650,6.4032,129.41,129.37,16.56628505]
[1725886981961,6.3361,129.44,129.4,16.56628505]
[1725886982169,15.0939,129.46,129.42,16.56628505]
[1725886983229,6.5061,129.41,129.29,15.3705]
[1725886983435,6.5061,129.41,129.34,16.56628505]
[1725886983755,6.5061,129.41,129.29,15.3705]
[1725886984056,6.5061,129.41,129.32,16.56628505]
[1725886984438,45.0,129.4,129.32,16.56628505]
[1725886985748,45.0,129.4,129.29,15.3705]
[1725886985947,45.0,129.4,129.31,16.56628505]
[1725886986257,45.0,129.4,129.29,15.3705]
[1725886986258,15.6731,129.39,129.32,20.0]
[1725886986462,45.0,129.38,129.31,20.0]
[1725886986830,45.0,129.38,129.3,17.40740635]
[1725886987664,45.0,129.38,129.3,0.8411213]
[1725886987958,6.2754,129.37,129.33,16.56628505]
[1725886988755,6.2754,129.37,129.31,16.56628505]
[1725886988954,6.2754,129.37,129.32,20.0]
[1725886989149,45.0,129.36,129.32,20.0]
[1725886989660,45.0,129.36,129.3,20.8411213]
[1725886989854,45.0,129.36,129.3,0.8411213]
[1725886990260,15.6731,129.35,129.3,0.8411213]
[1725886990444,45.0,129.34,129.3,0.8411213]
[1725886995559,15.6731,129.35,129.3,0.8411213]
[1725886995740,15.6731,129.35,129.31,16.56628505]
[1725886996441,15.6731,129.35,129.3,0.8411213]
[1725886997063,15.6731,129.35,129.3,17.40740635]
[1725886997244,15.6731,129.35,129.31,20.0]
[1725886998171,6.2754,129.37,129.32,16.56628505]
[1725886999941,6.2754,129.37,129.33,20.0]
[1725887002752,6.2754,129.37,129.3,17.40740635]
[1725887002962,45.0,129.36,129.3,17.40740635]
[1725887004263,45.0,129.36,129.3,0.8411213]
[1725887005375,45.0,129.36,129.3,17.40740635]
[1725887006773,45.0,129.36,129.33,16.56628505]
[1725887006951,6.2754,129.37,129.33,16.56628505]
[1725887007149,6.2754,129.37,129.31,16.56628505]
[1725887007352,45.0,129.36,129.3,0.8411213]
[1725887007550,45.0,129.36,129.3,20.8411213]
[1725887010379,45.0,129.36,129.31,16.56628505]
[1725887010864,6.2754,129.37,129.31,16.56628505]
[1725887012479,45.0,129.36,129.31,16.56628505]
[1725887017689,45.0,129.36,129.3,20.8411213]
[1725887017866,45.0,129.36,129.3,0.8411213]
[1725887018581,45.0,129.36,129.3,20.8411213]
[1725887019659,45.0,129.36,129.31,16.56628505]
[1725887021687,45.0,129.36,129.3,20.8411213]
[1725887021993,45.0,129.36,129.3,0.8411213]
[1725887022289,45.0,129.36,129.3,20.8411213]
[1725887023787,45.0,129.36,129.31,16.56628505]
[1725887028284,45.0,129.36,129.3,20.8411213]
[1725887028480,45.0,129.36,129.3,0.8411213]
[1725887029496,15.1078,129.35,129.3,0.8411213]
[1725887029677,45.0,129.34,129.3,0.8411213]
[1725887030495,6.3399,129.33,129.3,0.8411213]
[1725887030704,45.0,129.32,129.3,0.8411213]
[1725887039787,52.7329,129.32,129.3,0.8411213]
[1725887039988,66.4836,129.31,129.3,0.8411213]
[1725887040412,111.4836,129.31,129.3,0.8411213]
[1725887045914,119.2169,129.31,129.3,0.8411213]
[1725887047222,128.63394918,129.31,129.3,0.8411213]
[1725887047617,50.0,129.29,129.19,15.8272]
[1725887047818,56.5066,129.29,129.2,16.56628505]
[1725887047999,45.0,129.28,129.2,16.56628505]
[1725887048415,45.0,129.28,129.21,20.0]
[1725887050822,45.0,129.28,129.22,16.56628505]
[1725887054320,45.0,129.28,129.21,20.0]
[1725887054921,45.0,129.28,129.2,36.56628505]
[1725887055420,45.0,129.28,129.21,16.56628505]
[1725887057426,6.5066,129.29,129.21,16.56628505]
[1725887058308,6.5066,129.29,129.23,16.56628505]
[1725887058505,45.0,129.28,129.23,16.56628505]
[1725887058940,45.0,129.28,129.21,16.56628505]
[1725887059129,45.0,129.28,129.22,20.0]
[1725887059630,45.0,129.28,129.21,16.56628505]
[1725887059830,45.0,129.28,129.22,20.0]
[1725887060907,45.0,129.28,129.21,16.56628505]
[1725887061106,45.0,129.28,129.22,20.0]
[1725887063536,45.0,129.28,129.22,16.56628505]
[1725887067931,6.5066,129.29,129.24,16.56628505]
[1725887069027,16.4836,129.31,129.26,16.56628505]
[1725887072737,45.0,129.3,129.25,16.56628505]
[1725887072937,45.0,129.3,129.26,20.0]
[1725887074957,16.4836,129.31,129.27,16.56628505]
[1725887077265,16.4836,129.31,129.26,20.0]
[1725887077564,45.0,129.3,129.25,36.56628505]
[1725887085347,6.0289,129.32,129.25,36.56628505]
[1725887085348,6.0289,129.32,129.29,16.56628505]
[1725887085659,15.9714,129.34,129.31,16.56628505]
[1725887086267,15.9714,129.37,129.31,16.56628505]
[1725887087369,15.9714,129.37,129.33,16.56628505]
[1725887096960,45.0,129.36,129.33,16.56628505]
[1725887098276,15.9714,129.37,129.33,16.56628505]
[1725887099254,15.9714,129.37,129.32,16.56628505]
[1725887099553,45.0,129.36,129.31,16.56628505]
[1725887099755,45.0,129.36,129.32,20.0]
[1725887100289,45.0,129.36,129.28,15.3758]
[1725887100494,95.0,129.36,129.27,16.56628505]
[1725887101983,95.0,129.36,129.24,15.8376]
[1725887102195,95.0,129.36,129.27,16.56628505]
[1725887103460,95.0,129.36,129.28,20.0]
[1725887104884,6.2343,129.35,129.28,20.0]
[1725887105089,45.0,129.34,129.28,20.0]
[1725887106295,45.0,129.34,129.27,16.56628505]
[1725887106592,42.95606014,129.34,129.28,20.0]
[1725887111002,6.2343,129.35,129.29,16.56628505]
[1725887111379,6.2343,129.35,129.28,20.0]
[1725887112394,45.0,129.34,129.28,20.0]
[1725887112786,16.6266,129.33,129.21,16.2075]
[1725887113092,45.0,129.32,129.24,16.56628505]
[1725887113278,6.3359,129.31,129.25,20.0]
[1725887113481,45.0,129.3,129.25,20.0]
[1725887117108,45.0,129.3,129.21,16.2075]
[1725887117311,16.2625,129.29,129.23,16.56628505]
[1725887117485,45.0,129.28,129.23,16.56628505]
[1725887118499,45.0,129.28,129.24,20.0]
[1725887119090,45.0,129.28,129.22,16.56628505]
[1725887119292,45.0,129.28,129.23,20.0]
[1725887119497,6.2081,129.27,129.23,20.0]
[1725887119705,45.0,129.26,129.23,20.0]
[1725887120003,45.0,129.26,129.21,20.0]
[1725887121678,45.0,129.26,129.22,16.56628505]
[1725887121884,45.0,129.26,129.23,20.0]
[1725887126232,45.0,129.26,129.22,16.56628505]
[1725887129233,6.2081,129.27,129.22,16.56628505]
[1725887129524,6.2081,129.27,129.17,16.2062213]
[1725887129730,6.2081,129.27,129.2,16.56628505]
[1725887129907,6.2081,129.27,129.21,20.0]
[1725887130821,45.0,129.26,129.21,20.0]
[1725887131016,45.0,129.26,129.17,16.2062213]
[1725887131017,16.1378,129.25,129.18,16.56628505]
[1725887131226,45.0,129.24,129.19,20.0]
[1725887133005,45.0,129.24,129.17,0.8411213]
[1725887133006,6.5348,129.23,129.17,0.8411213]
[1725887133309,45.0,129.22,129.17,0.8411213]
[1725887136836,6.5348,129.23,129.17,17.40740635]
[1725887138517,45.0,129.22,129.17,17.40740635]
[1725887138713,45.0,129.22,129.17,0.8411213]
[1725887139205,45.0,129.22,129.17,17.40740635]
[1725887146537,45.0,129.22,129.17,0.8411213]
[1725887146942,45.0,129.22,129.17,20.8411213]
[1725887150135,45.0,129.22,129.18,16.56628505]
[1725887157259,6.3268,129.27,129.2,16.56628505]
[1725887157563,6.3268,129.27,129.22,16.56628505]
[1725887158155,16.1248,129.28,129.22,16.56628505]
[1725887158640,6.3268,129.3,129.26,16.56628505]
[1725887159245,16.1248,129.31,129.26,16.56628505]
[1725887159458,21.4669,129.34,129.26,16.56628505]
[1725887160054,21.4669,129.34,129.28,16.56628505]
[1725887161661,80.42078806,129.34,129.26,16.56628505]
[1725887161836,8.95388806,129.33,129.24,16.56628505]
[1725887162152,71.4669,129.34,129.25,20.0]
[1725887162738,45.0,129.33,129.25,20.0]
[1725887164258,52.7321,129.33,129.25,20.0]
[1725887165940,50.0,129.32,129.25,20.0]
[1725887166150,45.0,129.31,129.25,20.0]
[1725887168041,45.0,129.31,129.24,16.56628505]
[1725887168248,45.0,129.31,129.23,15.1718]
[1725887168657,50.0,129.3,129.2,15.2281]
[1725887168865,75.7673,129.29,129.2,31.79438505]
[1725887169050,57.7352,129.28,129.2,31.79438505]
[1725887169246,45.0,129.27,129.2,31.79438505]
[1725887169452,45.0,129.27,129.18,16.56628505]
[1725887170568,45.0,129.27,129.19,20.0]
[1725887171579,45.0,129.27,129.2,16.56628505]
[1725887175974,45.0,129.27,129.19,20.0]
[1725887176148,22.4479,129.25,129.19,20.0]
[1725887176348,22.4479,129.25,129.18,16.56628505]
[1725887176349,45.0,129.24,129.18,16.56628505]
[1725887176549,45.0,129.24,129.19,20.0]
[1725887177861,45.0,129.24,129.2,16.56628505]
[1725887178276,22.4479,129.25,129.2,16.56628505]
[1725887178447,15.8214,129.25,129.2,16.56628505]
[1725887180076,21.8091,129.28,129.2,16.56628505]
[1725887180585,45.0,129.27,129.2,16.56628505]
[1725887182162,45.0,129.27,129.19,20.0]
[1725887182579,50.0,129.26,129.17,37.40740635]
[1725887182771,45.0,129.25,129.17,37.40740635]
[1725887182984,45.0,129.25,129.17,20.8411213]
[1725887183168,45.0,129.25,129.18,16.56628505]
[1725887183575,45.0,129.26,129.19,20.0]
[1725887184501,45.0,129.27,129.2,16.56628505]
[1725887185180,45.0,129.27,129.19,20.0]
[1725887185879,73.0322,129.26,129.17,0.8411213]
[1725887186082,45.0,129.25,129.17,20.8411213]
[1725887186614,52.737,129.25,129.17,20.8411213]
[1725887187104,6.1005,129.23,129.17,20.8411213]
[1725887187283,45.0,129.22,129.17,0.8411213]
[1725887192397,6.1005,129.23,129.17,0.8411213]
[1725887192708,21.4386,129.26,129.19,16.56628505]
[1725887192892,79.175,129.26,129.19,16.56628505]
[1725887193082,79.175,129.26,129.17,37.40740635]
[1725887193898,45.0,129.25,129.17,37.40740635]
[1725887197712,52.737,129.25,129.17,37.40740635]
[1725887198399,7.7376,129.24,129.17,37.40740635]
[1725887198708,15.8917,129.22,129.17,20.8411213]
[1725887198918,45.0,129.21,129.17,0.8411213]
[1725887199119,45.0,129.21,129.17,17.40740635]
[1725887201813,45.0,129.21,129.17,0.8411213]
[1725887213633,15.8917,129.22,129.17,18.95182185]
[1725887213840,22.2856,129.25,129.19,16.56628505]
[1725887214598,22.2856,129.25,129.21,16.56628505]
[1725887214798,25.3856,129.28,129.21,16.56628505]
[1725887217032,45.0,129.27,129.21,16.56628505]
[1725887219117,22.2856,129.28,129.21,16.56628505]
[1725887220486,45.0,129.27,129.21,16.56628505]
[1725887221749,16.1666,129.28,129.23,16.56628505]
[1725887221949,19.27528096,129.3,129.23,16.56628505]
[1725887222126,19.27528096,129.3,129.25,16.56628505]
[1725887222456,19.27528096,129.3,129.24,20.0]
[1725887223459,45.0,129.29,129.24,20.0]
[1725887226559,45.0,129.29,129.23,16.56628505]
[1725887229839,45.0,129.29,129.25,16.56628505]
[1725887230050,19.27528096,129.3,129.25,16.56628505]
[1725887230265,19.27528096,129.3,129.23,16.56628505]
[1725887231061,19.27528096,129.3,129.21,16.56628505]
[1725887231062,77.00928096,129.3,129.21,16.56628505]
[1725887231240,45.0,129.29,129.22,20.0]
[1725887234239,45.0,129.29,129.23,16.56628505]
[1725887235068,19.27528096,129.3,129.23,16.56628505]
[1725887236850,45.0,129.29,129.23,16.56628505]
[1725887237250,45.0,129.29,129.24,20.0]
[1725887237656,19.27528096,129.3,129.27,16.56628505]
[1725887237860,23.1195,129.34,129.27,16.56628505]
[1725887238754,23.1195,129.34,129.29,16.56628505]
[1725887239571,23.1195,129.37,129.29,16.56628505]
[1725887239959,23.1195,129.37,129.3,20.0]
[1725887241054,23.1195,129.37,129.31,16.56628505]
[1725887241269,23.97550435,129.38,129.3,20.0]
[1725887241270,23.97550435,129.38,129.33,16.56628505]
[1725887241976,21.4648,129.41,129.33,16.56628505]
[1725887245377,45.0,129.4,129.33,16.56628505]
[1725887246550,45.0,129.4,129.31,16.56628505]
[1725887246752,45.0,129.4,129.32,20.0]
[1725887247372,102.728,129.4,129.31,20.0]
[1725887247683,102.728,129.4,129.31,36.56628505]
[1725887248654,45.0,129.4,129.31,36.56628505]
[1725887250566,45.0,129.4,129.33,16.56628505]
[1725887252178,21.4648,129.41,129.34,20.0]
[1725887253383,45.0,129.4,129.34,20.0]
[1725887255675,45.0,129.4,129.33,16.56628505]
[1725887255979,45.0,129.4,129.34,20.0]
[1725887256475,45.0,129.4,129.31,16.56628505]
[1725887256476,45.0,129.4,129.32,20.0]
[1725887260293,45.0,129.4,129.31,20.0]
[1725887260488,52.728,129.4,129.31,20.0]
[1725887260792,45.0,129.4,129.31,20.0]
[1725887262271,52.7285,129.4,129.31,20.0]
[1725887265792,7.7286,129.39,129.31,20.0]
[1725887266003,45.0,129.38,129.31,20.0]
[1725887270875,21.9116,129.37,129.3,20.0]
[1725887271076,45.0,129.36,129.3,20.0]
[1725887272119,21.9116,129.37,129.33,16.56628505]
[1725887273197,21.9116,129.37,129.31,16.56628505]
[1725887273398,21.9116,129.37,129.32,20.0]
[1725887281699,21.9116,129.37,129.26,15.3963]
[1725887281700,7.7308,129.36,129.26,15.3963]
[1725887281993,21.9116,129.37,129.26,15.3963]
[1725887281994,45.0,129.35,129.26,15.3963]
[1725887282197,45.0,129.36,129.27,16.56628505]
[1725887284382,45.0,129.36,129.28,20.0]
[1725887284712,45.0,129.36,129.28,36.56628505]
[1725887286508,22.8147,129.35,129.23,16.2017]
[1725887286706,95.0,129.34,129.24,16.56628505]
[1725887287007,6.4779,129.32,129.21,6.5334]
[1725887287207,45.0,129.31,129.23,16.56628505]
[1725887288116,45.0,129.31,129.25,16.56628505]
[1725887288318,45.0,129.31,129.26,20.0]
[1725887292135,6.4779,129.32,129.27,16.56628505]
[1725887298510,6.4779,129.32,129.26,20.0]
[1725887298838,6.4779,129.32,129.21,6.5334]
[1725887298839,45.0,129.31,129.25,16.56628505]
[1725887299140,45.0,129.31,129.26,20.0]
[1725887300915,45.0,129.31,129.24,16.56628505]
[1725887301237,45.0,129.31,129.25,20.0]
[1725887309536,45.0,129.31,129.26,16.56628505]
[1725887310140,6.4779,129.32,129.26,16.56628505]
[1725887310859,6.4779,129.32,129.28,16.56628505]
[1725887311357,6.4779,129.32,129.26,16.56628505]
[1725887311538,6.4779,129.32,129.27,20.0]
[1725887311856,45.0,129.31,129.27,20.0]
[1725887312033,45.0,129.31,129.24,16.56628505]
[1725887312237,45.0,129.31,129.25,20.0]
[1725887318276,15.9086,129.3,129.25,20.0]
[1725887318575,15.9086,129.3,129.19,15.8147]
[1725887318576,6.5723,129.28,129.2,16.56628505]
[1725887318876,45.0,129.27,129.2,16.56628505]
[1725887319956,45.0,129.27,129.21,20.0]
[1725887321553,45.0,129.27,129.22,16.56628505]
[1725887321775,45.0,129.27,129.23,20.0]
[1725887322467,45.0,129.27,129.21,20.0]
[1725887324474,16.533,129.26,129.21,20.0]
[1725887326469,16.533,129.26,129.21,36.56628505]
[1725887327181,16.533,129.26,129.21,20.0]
[1725887327366,16.533,129.26,129.2,16.56628505]
[1725887327566,16.533,129.26,129.21,20.0]
[1725887328356,45.0,129.25,129.21,20.0]
[1725887328557,16.533,129.26,129.21,20.0]
[1725887335089,16.533,129.26,129.22,16.56628505]
[1725887336288,16.533,129.26,129.21,20.0]
[1725887338991,45.0,129.25,129.21,20.0]
[1725887339192,45.0,129.25,129.19,20.0]
[1725887340394,6.5231,129.24,129.17,20.8411213]
[1725887340601,6.5231,129.24,129.17,0.8411213]
[1725887340602,45.0,129.23,129.17,0.8411213]
[1725887341391,15.07,129.22,129.17,0.8411213]
[1725887341569,45.0,129.21,129.17,0.8411213]
[1725887345495,6.5848,129.2,129.17,0.8411213]
[1725887345664,45.0,129.19,129.17,0.8411213]
[1725887345991,16.0193,129.18,129.17,0.8411213]
[1725887346180,61.0193,129.18,129.17,0.8411213]
[1725887348380,16.0193,129.18,129.17,0.8411213]
[1725887348591,61.0193,129.18,129.17,0.8411213]
[1725887349493,61.0193,129.18,129.1,20.0]
[1725887349494,117.5081,129.18,129.1,20.0]
[1725887349802,45.0,129.17,129.1,20.0]
[1725887350003,15.7046,129.14,129.04,0.8411213]
[1725887350209,15.7046,129.14,129.05,16.56628505]
[1725887350210,45.0,129.13,129.05,16.56628505]
[1725887350576,45.0,129.13,129.07,16.56628505]
[1725887351176,45.0,129.13,129.05,16.56628505]
[1725887351381,45.0,129.13,129.06,20.0]
[1725887351597,45.0,129.13,129.07,16.56628505]
[1725887352284,45.0,129.13,129.09,16.56628505]
[1725887352996,15.7046,129.14,129.11,16.56628505]
[1725887353402,6.4698,129.15,129.11,16.56628505]
[1725887354688,45.0,129.14,129.11,16.56628505]
[1725887355088,6.4698,129.15,129.11,16.56628505]
[1725887356289,15.5494,129.17,129.11,16.56628505]
[1725887358414,45.0,129.16,129.11,16.56628505]
[1725887368628,45.0,129.16,129.12,20.0]
[1725887369301,45.0,129.16,129.11,16.56628505]
[1725887369814,45.0,129.16,129.08,6.2566]
[1725887370117,45.0,129.16,129.1,16.56628505]
[1725887370316,45.0,129.16,129.11,20.0]
[1725887371911,45.0,129.16,129.1,16.56628505]
[1725887382708,15.5494,129.17,129.12,16.56628505]
[1725887384212,45.0,129.16,129.12,16.56628505]
[1725887386207,45.0,129.16,129.08,6.2566]
[1725887386409,45.0,129.16,129.12,16.56628505]
[1725887392033,15.5494,129.17,129.12,16.56628505]
[1725887395517,15.5494,129.17,129.13,20.0]
[1725887397815,6.6102,129.18,129.13,20.0]
[1725887397816,6.6102,129.18,129.14,16.56628505]
[1725887401443,45.0,129.17,129.14,16.56628505]
[1725887401613,45.0,129.17,129.09,16.6233]
[1725887401925,45.0,129.17,129.1,16.56628505]
[1725887402116,45.0,129.17,129.11,20.0]
[1725887402311,45.0,129.17,129.12,16.56628505]
[1725887403430,6.6102,129.18,129.14,16.56628505]
[1725887403934,15.24,129.2,129.16,16.56628505]
[1725887404121,15.24,129.2,129.17,16.56628505]
[1725887404721,15.24,129.2,129.11,20.0]
[1725887405047,15.24,129.2,129.15,16.56628505]
[1725887405535,15.24,129.2,129.1,20.0]
[1725887405536,45.0,129.19,129.1,20.0]
[1725887405710,45.0,129.19,129.14,16.56628505]
[1725887407436,45.0,129.19,129.1,20.0]
[1725887407631,45.0,129.19,129.12,16.56628505]
[1725887414047,45.0,129.19,129.09,16.6233]
[1725887414261,45.0,129.19,129.13,16.56628505]
[1725887418260,45.0,129.19,129.09,16.6233]
[1725887418440,15.6938,129.17,129.1,20.0]
[1725887418753,45.0,129.16,129.1,20.0]
[1725887419753,45.0,129.16,129.08,16.56628505]
[1725887420054,45.0,129.16,129.06,15.1412]
[1725887420055,45.0,129.16,129.1,16.56628505]
[1725887423642,45.0,129.16,129.11,16.56628505]
[1725887426886,15.6938,129.17,129.11,16.56628505]
[1725887428455,45.0,129.16,129.11,16.56628505]
[1725887433582,15.6938,129.17,129.11,16.56628505]
[1725887433749,15.6938,129.17,129.13,16.56628505]
[1725887433946,6.566,129.18,129.15,16.56628505]
[1725887434185,16.4249,129.2,129.15,16.56628505]
[1725887435454,16.4249,129.2,129.1,21.7663]
[1725887435651,74.1649,129.2,129.12,16.56628505]
[1725887436449,45.0,129.19,129.12,16.56628505]
[1725887441660,52.7405,129.19,129.12,16.56628505]
[1725887442778,6.1186,129.18,129.11,20.0]
[1725887442976,6.1186,129.18,129.07,22.6047]
[1725887442977,61.0204,129.17,129.09,16.56628505]
[1725887443274,61.0204,129.17,129.1,20.0]
[1725887446969,61.0204,129.17,129.09,16.56628505]
[1725887447284,61.0204,129.17,129.1,20.0]
[1725887447858,50.0,129.16,129.04,7.0452213]
[1725887448051,66.5621,129.15,129.07,16.56628505]
[1725887448669,74.3053,129.15,129.07,16.56628505]
[1725887449483,16.5035,129.12,129.06,16.56628505]
[1725887449681,45.0,129.11,129.06,16.56628505]
[1725887449986,45.0,129.11,129.08,16.56628505]
[1725887451074,16.5035,129.12,129.08,16.56628505]
[1725887451783,45.0,129.11,129.08,16.56628505]
[1725887452579,45.0,129.11,129.07,16.56628505]
[1725887463767,45.0,129.11,129.09,16.56628505]
[1725887465702,45.0,129.11,129.04,0.8411213]
[1725887465864,45.0,129.11,129.06,16.56628505]
[1725887466063,45.0,129.11,129.07,20.0]
[1725887466265,45.0,129.11,129.08,16.56628505]
[1725887469296,45.0,129.11,129.07,20.0]
[1725887469513,51.5985,129.11,129.07,16.56628505]
[1725887471006,51.5985,129.11,129.04,20.8411213]
[1725887471181,51.5985,129.11,129.06,16.56628505]
[1725887475891,6.5985,129.11,129.08,16.56628505]
[1725887477480,16.5035,129.12,129.08,16.56628505]
[1725887478792,45.0,129.11,129.08,16.56628505]
[1725887481185,16.5035,129.12,129.08,16.56628505]